[Event "Titled Tuesday Blitz July 25 Early 2023"]
[White "Molina Carretero, Daniel"]
[Black "Dehtiarov, Roman"]
[WhiteFideId "32071914"]
[BlackFideId "14186640"]
[WhiteElo "2412"]
[BlackElo "2733"]
[Result "1/2-1/2"]
[Round "3"]
[TimeControl "180+2"]
[Date "2023.07.25"]
[WhiteClock "0:00:13"]
[BlackClock "0:00:13"]
[Board "67"]

1. c4 {[%clk 0:03:00]}  Nf6 {[%clk 0:02:59]} 2. g3 {[%clk 0:03:00]}  c5 {[%clk 0:02:59]} 3. Bg2 {[%clk 0:03:00]}  Nc6 {[%clk 0:03:00]} 4. Nc3 {[%clk 0:03:00]}  b6 {[%clk 0:02:59]} 5. Nf3 {[%clk 0:02:57]}  Bb7 {[%clk 0:02:59]} 6. O-O {[%clk 0:02:57]}  e6 {[%clk 0:02:52]} 7. a3 {[%clk 0:02:51]}  Be7 {[%clk 0:02:51]} 8. Rb1 {[%clk 0:02:51]}  O-O {[%clk 0:02:50]} 9. d3 {[%clk 0:02:49]}  d5 {[%clk 0:02:43]} 10. cxd5 {[%clk 0:02:49]}  Nxd5 {[%clk 0:02:40]} 11. Nxd5 {[%clk 0:02:47]}  Qxd5 {[%clk 0:02:38]} 12. Be3 {[%clk 0:02:45]}  Rfd8 {[%clk 0:01:41]} 13. Qa4 {[%clk 0:02:35]}  Qd7 {[%clk 0:01:37]} 14. Rfc1 {[%clk 0:02:25]}  Rac8 {[%clk 0:00:48]} 15. b4 {[%clk 0:02:18]}  cxb4 {[%clk 0:00:45]} 16. axb4 {[%clk 0:02:17]}  Bf6 {[%clk 0:00:32]} 17. b5 {[%clk 0:02:05]}  Na5 {[%clk 0:00:31]} 18. Bd2 {[%clk 0:01:55]}  Rxc1+ {[%clk 0:00:20]} 19. Rxc1 {[%clk 0:01:55]}  Rc8 {[%clk 0:00:20]} 20. Rxc8+ {[%clk 0:01:36]}  Qxc8 {[%clk 0:00:21]} 21. Bxa5 {[%clk 0:01:27]}  bxa5 {[%clk 0:00:22]} 22. Qxa5 {[%clk 0:01:27]}  Qc1+ {[%clk 0:00:21]} 23. Qe1 {[%clk 0:01:26]}  Qb2 {[%clk 0:00:17]} 24. Qa5 {[%clk 0:01:11]}  h6 {[%clk 0:00:03]} 25. Qxa7 {[%clk 0:01:05]}  Qb1+ {[%clk 0:00:03]} 26. Bf1 {[%clk 0:01:03]}  Bxf3 {[%clk 0:00:03]} 27. Qb8+ {[%clk 0:00:58]}  Kh7 {[%clk 0:00:04]} 28. exf3 {[%clk 0:00:58]}  Bd4 {[%clk 0:00:04]} 29. Qf4 {[%clk 0:00:55]}  Qb2 {[%clk 0:00:03]} 30. Qe4+ {[%clk 0:00:45]}  g6 {[%clk 0:00:02]} 31. Qe2 {[%clk 0:00:44]}  Qxb5 {[%clk 0:00:02]} 32. h4 {[%clk 0:00:43]}  h5 {[%clk 0:00:01]} 33. f4 {[%clk 0:00:43]}  Qc5 {[%clk 0:00:02]} 34. Bg2 {[%clk 0:00:43]}  Qc1+ {[%clk 0:00:01]} 35. Kh2 {[%clk 0:00:42]}  Qc5 {[%clk 0:00:02]} 36. Be4 {[%clk 0:00:39]}  Bxf2 {[%clk 0:00:02]} 37. Qxh5+ {[%clk 0:00:39]}  Kg7 {[%clk 0:00:02]} 38. Qxc5 {[%clk 0:00:35]}  Bxc5 {[%clk 0:00:03]} 39. Kg2 {[%clk 0:00:34]}  Kf6 {[%clk 0:00:03]} 40. Kf3 {[%clk 0:00:33]}  Kg7 {[%clk 0:00:03]} 41. g4 {[%clk 0:00:33]}  f5 {[%clk 0:00:03]} 42. Bc6 {[%clk 0:00:31]}  Kf6 {[%clk 0:00:02]} 43. g5+ {[%clk 0:00:30]}  Ke7 {[%clk 0:00:02]} 44. Bb5 {[%clk 0:00:29]}  Bd4 {[%clk 0:00:02]} 45. Ba4 {[%clk 0:00:26]}  Kf7 {[%clk 0:00:01]} 46. Bb3 {[%clk 0:00:25]}  Ke7 {[%clk 0:00:02]} 47. Bc4 {[%clk 0:00:25]}  Kf7 {[%clk 0:00:02]} 48. Bb3 {[%clk 0:00:25]}  Ke7 {[%clk 0:00:02]} 49. Bd1 {[%clk 0:00:25]}  Kf7 {[%clk 0:00:03]} 50. Kg3 {[%clk 0:00:25]}  Ke7 {[%clk 0:00:03]} 51. h5 {[%clk 0:00:22]}  gxh5 {[%clk 0:00:04]} 52. Bxh5 {[%clk 0:00:23]}  e5 {[%clk 0:00:04]} 53. Kf3 {[%clk 0:00:21]}  Ke6 {[%clk 0:00:01]} 54. Bg6 {[%clk 0:00:21]}  exf4 {[%clk 0:00:01]} 55. Kxf4 {[%clk 0:00:20]}  Be5+ {[%clk 0:00:02]} 56. Kf3 {[%clk 0:00:19]}  Bd4 {[%clk 0:00:02]} 57. Bh7 {[%clk 0:00:19]}  Be5 {[%clk 0:00:01]} 58. Ke3 {[%clk 0:00:18]}  Bg7 {[%clk 0:00:01]} 59. d4 {[%clk 0:00:16]}  Kd5 {[%clk 0:00:02]} 60. Bxf5 {[%clk 0:00:14]}  Bxd4+ {[%clk 0:00:02]} 61. Kf4 {[%clk 0:00:14]}  Bg7 {[%clk 0:00:02]} 62. Bc8 {[%clk 0:00:12]}  Kd6 {[%clk 0:00:03]} 63. Kf5 {[%clk 0:00:12]}  Ke7 {[%clk 0:00:04]} 64. Kg6 {[%clk 0:00:12]}  Kf8 {[%clk 0:00:05]} 65. Be6 {[%clk 0:00:11]}  Ba1 {[%clk 0:00:06]} 66. Bd5 {[%clk 0:00:12]}  Bb2 {[%clk 0:00:07]} 67. Kh7 {[%clk 0:00:12]}  Ba1 {[%clk 0:00:08]} 68. g6 {[%clk 0:00:12]}  Bg7 {[%clk 0:00:08]} 69. Be6 {[%clk 0:00:11]}  Bb2 {[%clk 0:00:09]} 70. Bf7 {[%clk 0:00:12]}  Bg7 {[%clk 0:00:10]} 71. Be6 {[%clk 0:00:12]}  Bb2 {[%clk 0:00:11]} 72. Bb3 {[%clk 0:00:13]}  Bg7 {[%clk 0:00:11]} 73. Ba2 {[%clk 0:00:13]}  Bb2 {[%clk 0:00:12]} 74. g7+ {[%clk 0:00:13]}  Bxg7 {[%clk 0:00:13]} 1/2-1/2


[Site "https://www.chess.com"]

[Event "Titled Tuesday Blitz July 25 Early 2023"]
[White "Timerkhanov, Alexander"]
[Black "Wernberg, Hugo"]
[WhiteFideId "24177938"]
[BlackFideId "1737511"]
[WhiteElo "2682"]
[BlackElo "2350"]
[Result "1-0"]
[Round "3"]
[TimeControl "180+2"]
[Date "2023.07.25"]
[WhiteClock "0:00:27"]
[BlackClock "0:00:01"]
[Board "70"]

1. d4 {[%clk 0:03:00]}  d5 {[%clk 0:02:59]} 2. Bf4 {[%clk 0:03:00]}  Nf6 {[%clk 0:02:59]} 3. e3 {[%clk 0:03:00]}  c5 {[%clk 0:02:59]} 4. c3 {[%clk 0:03:00]}  e6 {[%clk 0:03:00]} 5. Nd2 {[%clk 0:03:00]}  Bd6 {[%clk 0:03:00]} 6. Bg3 {[%clk 0:03:00]}  Qc7 {[%clk 0:02:58]} 7. Ngf3 {[%clk 0:02:59]}  Nbd7 {[%clk 0:02:58]} 8. Bd3 {[%clk 0:02:57]}  O-O {[%clk 0:02:58]} 9. Bh4 {[%clk 0:02:55]}  b6 {[%clk 0:02:16]} 10. Qe2 {[%clk 0:02:53]}  Bb7 {[%clk 0:02:16]} 11. O-O {[%clk 0:02:51]}  Ne4 {[%clk 0:02:09]} 12. Rac1 {[%clk 0:02:32]}  c4 {[%clk 0:01:54]} 13. Bb1 {[%clk 0:02:31]}  b5 {[%clk 0:01:35]} 14. Kh1 {[%clk 0:02:22]}  f5 {[%clk 0:01:27]} 15. Nxe4 {[%clk 0:02:21]}  dxe4 {[%clk 0:01:02]} 16. Ng5 {[%clk 0:02:21]}  Rae8 {[%clk 0:00:53]} 17. Bg3 {[%clk 0:02:21]}  e5 {[%clk 0:00:44]} 18. a4 {[%clk 0:01:51]}  a6 {[%clk 0:00:39]} 19. axb5 {[%clk 0:01:50]}  axb5 {[%clk 0:00:40]} 20. dxe5 {[%clk 0:01:29]}  Nxe5 {[%clk 0:00:27]} 21. Bxe5 {[%clk 0:01:28]}  Bxe5 {[%clk 0:00:28]} 22. g3 {[%clk 0:01:28]}  Qb6 {[%clk 0:00:15]} 23. Nh3 {[%clk 0:01:24]}  Qh6 {[%clk 0:00:12]} 24. Nf4 {[%clk 0:01:19]}  g5 {[%clk 0:00:12]} 25. Ng2 {[%clk 0:01:19]}  Kh8 {[%clk 0:00:07]} 26. Rcd1 {[%clk 0:01:17]}  f4 {[%clk 0:00:06]} 27. Qg4 {[%clk 0:01:01]}  f3 {[%clk 0:00:04]} 28. Ne1 {[%clk 0:01:00]}  Bc8 {[%clk 0:00:04]} 29. Qxe4 {[%clk 0:00:59]}  Bxg3 {[%clk 0:00:03]} 30. Qxh7+ {[%clk 0:00:58]}  Qxh7 {[%clk 0:00:03]} 31. Bxh7 {[%clk 0:00:59]}  Kxh7 {[%clk 0:00:04]} 32. fxg3 {[%clk 0:00:51]}  f2 {[%clk 0:00:03]} 33. Ng2 {[%clk 0:00:50]}  Bb7 {[%clk 0:00:03]} 34. Rd2 {[%clk 0:00:51]}  Bxg2+ {[%clk 0:00:02]} 35. Kxg2 {[%clk 0:00:50]}  Rxe3 {[%clk 0:00:03]} 36. Rfxf2 {[%clk 0:00:49]}  Rxf2+ {[%clk 0:00:02]} 37. Kxf2 {[%clk 0:00:50]}  Re5 {[%clk 0:00:02]} 38. Kf3 {[%clk 0:00:50]}  Kg6 {[%clk 0:00:02]} 39. Rd6+ {[%clk 0:00:46]}  Kf7 {[%clk 0:00:03]} 40. Rb6 {[%clk 0:00:42]}  Ke7 {[%clk 0:00:02]} 41. Kg4 {[%clk 0:00:41]}  Kf7 {[%clk 0:00:02]} 42. h4 {[%clk 0:00:41]}  gxh4 {[%clk 0:00:02]} 43. gxh4 {[%clk 0:00:42]}  Re4+ {[%clk 0:00:01]} 44. Kg5 {[%clk 0:00:41]}  Re5+ {[%clk 0:00:02]} 45. Kf4 {[%clk 0:00:42]}  Rh5 {[%clk 0:00:01]} 46. Kg4 {[%clk 0:00:42]}  Rd5 {[%clk 0:00:01]} 47. h5 {[%clk 0:00:42]}  Kg7 {[%clk 0:00:02]} 48. h6+ {[%clk 0:00:40]}  Kh7 {[%clk 0:00:02]} 49. Kf4 {[%clk 0:00:40]}  Rd2 {[%clk 0:00:01]} 50. Rxb5 {[%clk 0:00:40]}  Kxh6 {[%clk 0:00:02]} 51. Ke4 {[%clk 0:00:38]}  Kg6 {[%clk 0:00:02]} 52. Rb6+ {[%clk 0:00:37]}  Kf7 {[%clk 0:00:02]} 53. Ke5 {[%clk 0:00:28]}  Ke7 {[%clk 0:00:01]} 54. Rb5 {[%clk 0:00:27]} 1-0


[Site "https://www.chess.com"]

[Event "Titled Tuesday Blitz July 25 Early 2023"]
[White "brm72"]
[Black "Andreikin, Dmitry"]
[BlackFideId "4158814"]
[WhiteElo "2660"]
[BlackElo "3024"]
[Result "0-1"]
[Round "3"]
[TimeControl "180+2"]
[Date "2023.07.25"]
[WhiteClock "0:00:03"]
[BlackClock "0:00:10"]
[Board "72"]

1. Nf3 {[%clk 0:02:54]}  b5 {[%clk 0:02:58]} 2. e4 {[%clk 0:02:51]}  Bb7 {[%clk 0:02:58]} 3. Bxb5 {[%clk 0:02:41]}  Bxe4 {[%clk 0:02:58]} 4. O-O {[%clk 0:02:41]}  c6 {[%clk 0:02:58]} 5. Ba4 {[%clk 0:02:33]}  Qa5 {[%clk 0:02:57]} 6. Bb3 {[%clk 0:02:32]}  Qh5 {[%clk 0:02:47]} 7. d3 {[%clk 0:02:32]}  Bxf3 {[%clk 0:02:47]} 8. Qxf3 {[%clk 0:02:33]}  Qxf3 {[%clk 0:02:47]} 9. gxf3 {[%clk 0:02:34]}  Nf6 {[%clk 0:02:47]} 10. Re1 {[%clk 0:02:29]}  e6 {[%clk 0:02:47]} 11. Bf4 {[%clk 0:02:26]}  Be7 {[%clk 0:02:40]} 12. Nd2 {[%clk 0:02:23]}  O-O {[%clk 0:02:39]} 13. Ne4 {[%clk 0:02:22]}  d5 {[%clk 0:02:36]} 14. Ng3 {[%clk 0:02:17]}  Nbd7 {[%clk 0:02:28]} 15. Kg2 {[%clk 0:02:13]}  a5 {[%clk 0:02:26]} 16. c3 {[%clk 0:02:05]}  a4 {[%clk 0:02:24]} 17. Bc2 {[%clk 0:02:05]}  g6 {[%clk 0:02:24]} 18. b3 {[%clk 0:02:00]}  Rfc8 {[%clk 0:02:08]} 19. Ne2 {[%clk 0:01:35]}  Ne8 {[%clk 0:01:59]} 20. b4 {[%clk 0:01:28]}  c5 {[%clk 0:01:51]} 21. b5 {[%clk 0:01:28]}  Bd6 {[%clk 0:01:49]} 22. Bd2 {[%clk 0:01:23]}  Nb6 {[%clk 0:01:49]} 23. Rab1 {[%clk 0:01:20]}  Nf6 {[%clk 0:01:41]} 24. Bg5 {[%clk 0:01:16]}  Nfd7 {[%clk 0:01:37]} 25. Rec1 {[%clk 0:01:10]}  c4 {[%clk 0:01:29]} 26. d4 {[%clk 0:01:06]}  Rcb8 {[%clk 0:01:22]} 27. h4 {[%clk 0:00:57]}  h5 {[%clk 0:01:10]} 28. Bf4 {[%clk 0:00:43]}  Nc8 {[%clk 0:01:06]} 29. Bxd6 {[%clk 0:00:26]}  Nxd6 {[%clk 0:01:07]} 30. Rb4 {[%clk 0:00:26]}  a3 {[%clk 0:00:42]} 31. Rcb1 {[%clk 0:00:27]}  Rb6 {[%clk 0:00:40]} 32. Ng3 {[%clk 0:00:17]}  Ra5 {[%clk 0:00:36]} 33. Ba4 {[%clk 0:00:16]}  Kf8 {[%clk 0:00:30]} 34. f4 {[%clk 0:00:15]}  Ke7 {[%clk 0:00:30]} 35. Kf3 {[%clk 0:00:15]}  Rb8 {[%clk 0:00:29]} 36. Ke3 {[%clk 0:00:15]}  Nb6 {[%clk 0:00:28]} 37. Bc2 {[%clk 0:00:15]}  Nbc8 {[%clk 0:00:25]} 38. Ba4 {[%clk 0:00:14]}  Rb6 {[%clk 0:00:25]} 39. Ne2 {[%clk 0:00:07]}  Nf5+ {[%clk 0:00:24]} 40. Kd2 {[%clk 0:00:07]}  Nxh4 {[%clk 0:00:23]} 41. Bc2 {[%clk 0:00:06]}  Nd6 {[%clk 0:00:21]} 42. Ra4 {[%clk 0:00:04]}  Raxb5 {[%clk 0:00:16]} 43. Rxb5 {[%clk 0:00:04]}  Nxb5 {[%clk 0:00:15]} 44. Ra5 {[%clk 0:00:04]}  Rb7 {[%clk 0:00:13]} 45. Ba4 {[%clk 0:00:04]}  Nd6 {[%clk 0:00:13]} 46. Bc2 {[%clk 0:00:04]}  Nf3+ {[%clk 0:00:14]} 47. Ke3 {[%clk 0:00:04]}  Ne1 {[%clk 0:00:14]} 48. Ba4 {[%clk 0:00:03]}  Rb2 {[%clk 0:00:11]} 49. Bc6 {[%clk 0:00:03]}  Nf5# {[%clk 0:00:10]} 0-1


[Site "https://www.chess.com"]

[Event "Titled Tuesday Blitz July 25 Early 2023"]
[White "Ruge, Edison"]
[Black "Duda, Jan-Krzysztof"]
[WhiteFideId "4401000"]
[BlackFideId "1170546"]
[WhiteElo "2219"]
[BlackElo "2993"]
[Result "0-1"]
[Round "3"]
[TimeControl "180+2"]
[Date "2023.07.25"]
[WhiteClock "0:00:43"]
[BlackClock "0:02:35"]
[Board "73"]

1. e4 {[%clk 0:02:59]}  Nf6 {[%clk 0:03:00]} 2. e5 {[%clk 0:02:57]}  Ng8 {[%clk 0:03:01]} 3. c4 {[%clk 0:02:57]}  d6 {[%clk 0:03:02]} 4. exd6 {[%clk 0:02:55]}  cxd6 {[%clk 0:03:02]} 5. d4 {[%clk 0:02:56]}  g6 {[%clk 0:03:02]} 6. Nf3 {[%clk 0:02:56]}  Bg7 {[%clk 0:03:02]} 7. Be3 {[%clk 0:02:56]}  Nf6 {[%clk 0:03:02]} 8. Be2 {[%clk 0:02:56]}  O-O {[%clk 0:03:02]} 9. Nc3 {[%clk 0:02:56]}  Ng4 {[%clk 0:03:01]} 10. Qd2 {[%clk 0:02:49]}  Nxe3 {[%clk 0:03:00]} 11. Qxe3 {[%clk 0:02:50]}  Nd7 {[%clk 0:03:00]} 12. O-O {[%clk 0:02:48]}  e6 {[%clk 0:02:59]} 13. Rfd1 {[%clk 0:02:42]}  b6 {[%clk 0:02:59]} 14. Rac1 {[%clk 0:02:38]}  Bb7 {[%clk 0:02:59]} 15. b3 {[%clk 0:02:37]}  a6 {[%clk 0:02:58]} 16. Nd2 {[%clk 0:02:34]}  Qh4 {[%clk 0:02:54]} 17. Nf3 {[%clk 0:02:25]}  Qe7 {[%clk 0:02:54]} 18. Ne4 {[%clk 0:02:09]}  Rfd8 {[%clk 0:02:51]} 19. Qf4 {[%clk 0:02:04]}  e5 {[%clk 0:02:40]} 20. dxe5 {[%clk 0:01:45]}  dxe5 {[%clk 0:02:41]} 21. Qe3 {[%clk 0:01:37]}  f5 {[%clk 0:02:41]} 22. Nd6 {[%clk 0:01:35]}  f4 {[%clk 0:02:42]} 23. Qd2 {[%clk 0:01:08]}  Nc5 {[%clk 0:02:42]} 24. b4 {[%clk 0:01:02]}  Ne4 {[%clk 0:02:41]} 25. Nxe4 {[%clk 0:00:58]}  Rxd2 {[%clk 0:02:42]} 26. Nexd2 {[%clk 0:00:56]}  e4 {[%clk 0:02:41]} 27. Ne1 {[%clk 0:00:50]}  f3 {[%clk 0:02:42]} 28. Bf1 {[%clk 0:00:48]}  Rf8 {[%clk 0:02:36]} 29. Nb3 {[%clk 0:00:43]}  e3 {[%clk 0:02:35]} 0-1


[Site "https://www.chess.com"]

[Event "Titled Tuesday Blitz July 25 Early 2023"]
[White "Kevlishvili, Robby"]
[Black "Kirillov, Dmitry"]
[WhiteFideId "1040634"]
[BlackFideId "34180572"]
[WhiteElo "2991"]
[BlackElo "2486"]
[Result "1-0"]
[Round "3"]
[TimeControl "180+2"]
[Date "2023.07.25"]
[WhiteClock "0:01:27"]
[BlackClock "0:00:19"]
[Board "74"]

1. Nf3 {[%clk 0:02:44]}  Nf6 {[%clk 0:02:59]} 2. c4 {[%clk 0:02:44]}  b6 {[%clk 0:02:58]} 3. d4 {[%clk 0:02:43]}  e6 {[%clk 0:02:58]} 4. g3 {[%clk 0:02:43]}  Ba6 {[%clk 0:02:58]} 5. Nbd2 {[%clk 0:02:40]}  Be7 {[%clk 0:02:51]} 6. Bg2 {[%clk 0:02:40]}  d5 {[%clk 0:02:50]} 7. O-O {[%clk 0:02:40]}  O-O {[%clk 0:02:50]} 8. Qc2 {[%clk 0:02:39]}  c6 {[%clk 0:02:46]} 9. b3 {[%clk 0:02:40]}  Nbd7 {[%clk 0:02:46]} 10. Bb2 {[%clk 0:02:40]}  Rc8 {[%clk 0:02:46]} 11. Ne5 {[%clk 0:02:33]}  c5 {[%clk 0:02:43]} 12. dxc5 {[%clk 0:02:31]}  Nxc5 {[%clk 0:02:26]} 13. b4 {[%clk 0:02:17]}  Ncd7 {[%clk 0:02:15]} 14. Qa4 {[%clk 0:02:17]}  Nxe5 {[%clk 0:02:11]} 15. Qxa6 {[%clk 0:02:05]}  Nxc4 {[%clk 0:02:10]} 16. Nxc4 {[%clk 0:02:04]}  Rxc4 {[%clk 0:02:10]} 17. Qxa7 {[%clk 0:01:57]}  Rxb4 {[%clk 0:02:05]} 18. Ba3 {[%clk 0:01:57]}  Qa8 {[%clk 0:01:40]} 19. Qxa8 {[%clk 0:01:46]}  Rxa8 {[%clk 0:01:41]} 20. Bxb4 {[%clk 0:01:46]}  Bxb4 {[%clk 0:01:42]} 21. a4 {[%clk 0:01:44]}  Bc5 {[%clk 0:01:36]} 22. e3 {[%clk 0:01:44]}  Kf8 {[%clk 0:01:36]} 23. Rfb1 {[%clk 0:01:44]}  Ke7 {[%clk 0:01:35]} 24. Rb5 {[%clk 0:01:43]}  Nd7 {[%clk 0:01:31]} 25. Bf1 {[%clk 0:01:35]}  Kd6 {[%clk 0:01:29]} 26. Rb3 {[%clk 0:01:34]}  Ra5 {[%clk 0:01:26]} 27. Bb5 {[%clk 0:01:34]}  Ne5 {[%clk 0:01:23]} 28. Kg2 {[%clk 0:01:33]}  f5 {[%clk 0:01:20]} 29. Rd1 {[%clk 0:01:32]}  g5 {[%clk 0:01:16]} 30. h3 {[%clk 0:01:31]}  h5 {[%clk 0:01:16]} 31. Rb2 {[%clk 0:01:31]}  g4 {[%clk 0:01:16]} 32. hxg4 {[%clk 0:01:31]}  hxg4 {[%clk 0:01:16]} 33. Rh1 {[%clk 0:01:31]}  Ra7 {[%clk 0:01:07]} 34. Rh6 {[%clk 0:01:30]}  Nf3 {[%clk 0:00:33]} 35. Rb1 {[%clk 0:01:29]}  Ne5 {[%clk 0:00:18]} 36. Rbh1 {[%clk 0:01:29]}  d4 {[%clk 0:00:18]} 37. exd4 {[%clk 0:01:28]}  Bxd4 {[%clk 0:00:19]} 38. Rd1 {[%clk 0:01:28]}  Kd5 {[%clk 0:00:19]} 39. Rh8 {[%clk 0:01:27]} 1-0


[Site "https://www.chess.com"]

[Event "Titled Tuesday Blitz July 25 Early 2023"]
[White "Bychkov, Vladimir"]
[Black "Xiong, Jeffery"]
[WhiteFideId "24151513"]
[BlackFideId "2047640"]
[WhiteElo "2485"]
[BlackElo "2988"]
[Result "0-1"]
[Round "3"]
[TimeControl "180+2"]
[Date "2023.07.25"]
[WhiteClock "0:00:59"]
[BlackClock "0:01:03"]
[Board "75"]

1. e4 {[%clk 0:02:59]}  c5 {[%clk 0:02:57]} 2. Nf3 {[%clk 0:02:59]}  Nc6 {[%clk 0:02:57]} 3. Bb5 {[%clk 0:02:57]}  d6 {[%clk 0:02:57]} 4. O-O {[%clk 0:02:57]}  Bd7 {[%clk 0:02:57]} 5. Re1 {[%clk 0:02:55]}  Nf6 {[%clk 0:02:58]} 6. c3 {[%clk 0:02:53]}  a6 {[%clk 0:02:58]} 7. Bf1 {[%clk 0:02:53]}  Bg4 {[%clk 0:02:58]} 8. h3 {[%clk 0:02:53]}  Bxf3 {[%clk 0:02:58]} 9. Qxf3 {[%clk 0:02:54]}  e6 {[%clk 0:02:59]} 10. Na3 {[%clk 0:02:53]}  Be7 {[%clk 0:03:00]} 11. Nc2 {[%clk 0:02:53]}  O-O {[%clk 0:02:54]} 12. Ne3 {[%clk 0:02:52]}  b5 {[%clk 0:02:54]} 13. Ng4 {[%clk 0:02:51]}  Nd7 {[%clk 0:02:54]} 14. d3 {[%clk 0:02:51]}  b4 {[%clk 0:02:53]} 15. Bd2 {[%clk 0:02:39]}  Rb8 {[%clk 0:02:53]} 16. cxb4 {[%clk 0:02:21]}  Nxb4 {[%clk 0:02:50]} 17. Rec1 {[%clk 0:02:17]}  Nc6 {[%clk 0:02:38]} 18. Bc3 {[%clk 0:02:15]}  h5 {[%clk 0:02:37]} 19. Ne3 {[%clk 0:02:14]}  g6 {[%clk 0:02:38]} 20. Nc4 {[%clk 0:02:12]}  Bg5 {[%clk 0:01:54]} 21. Rc2 {[%clk 0:02:08]}  Bf6 {[%clk 0:01:54]} 22. Qg3 {[%clk 0:02:00]}  Nde5 {[%clk 0:01:51]} 23. Ne3 {[%clk 0:01:53]}  Nb4 {[%clk 0:01:36]} 24. Rd2 {[%clk 0:01:52]}  Nbc6 {[%clk 0:01:24]} 25. f4 {[%clk 0:01:52]}  Nd7 {[%clk 0:01:24]} 26. f5 {[%clk 0:01:50]}  Nde5 {[%clk 0:01:15]} 27. Be2 {[%clk 0:01:46]}  Kh7 {[%clk 0:01:15]} 28. fxg6+ {[%clk 0:01:44]}  fxg6 {[%clk 0:01:15]} 29. Rf1 {[%clk 0:01:43]}  Bh4 {[%clk 0:01:16]} 30. Qh2 {[%clk 0:01:37]}  Qg5 {[%clk 0:01:15]} 31. Nc2 {[%clk 0:01:21]}  Bg3 {[%clk 0:01:14]} 32. Qh1 {[%clk 0:01:19]}  Rxf1+ {[%clk 0:01:13]} 33. Kxf1 {[%clk 0:01:16]}  Rf8+ {[%clk 0:01:13]} 34. Bf3 {[%clk 0:01:16]}  Nxf3 {[%clk 0:01:02]} 35. gxf3 {[%clk 0:01:17]}  Ne5 {[%clk 0:01:03]} 36. Bxe5 {[%clk 0:00:59]}  Qxd2 {[%clk 0:01:03]} 37. Bxg3 {[%clk 0:00:59]}  Qxc2 {[%clk 0:01:03]} 0-1


[Site "https://www.chess.com"]

[Event "Titled Tuesday Blitz July 25 Early 2023"]
[White "Taboas Rodriguez, Daniel"]
[Black "Grigoriants, Sergey"]
[WhiteFideId "2208466"]
[BlackFideId "4130804"]
[WhiteElo "2482"]
[BlackElo "2906"]
[Result "1-0"]
[Round "3"]
[TimeControl "180+2"]
[Date "2023.07.25"]
[WhiteClock "0:00:42"]
[BlackClock "0:00:01"]
[Board "77"]

1. d4 {[%clk 0:03:00]}  d5 {[%clk 0:02:58]} 2. Nf3 {[%clk 0:02:59]}  Nf6 {[%clk 0:02:57]} 3. c3 {[%clk 0:03:00]}  Bf5 {[%clk 0:02:50]} 4. Bg5 {[%clk 0:03:00]}  Nbd7 {[%clk 0:02:49]} 5. e3 {[%clk 0:02:59]}  e6 {[%clk 0:02:46]} 6. Nh4 {[%clk 0:02:57]}  h6 {[%clk 0:02:36]} 7. Bxf6 {[%clk 0:02:51]}  Nxf6 {[%clk 0:02:37]} 8. Nxf5 {[%clk 0:02:51]}  exf5 {[%clk 0:02:38]} 9. Bd3 {[%clk 0:02:50]}  g6 {[%clk 0:02:38]} 10. Qb3 {[%clk 0:02:50]}  Rb8 {[%clk 0:02:15]} 11. O-O {[%clk 0:02:49]}  c6 {[%clk 0:02:13]} 12. c4 {[%clk 0:02:47]}  Bd6 {[%clk 0:02:09]} 13. Nc3 {[%clk 0:02:46]}  dxc4 {[%clk 0:01:48]} 14. Bxc4 {[%clk 0:02:45]}  O-O {[%clk 0:01:48]} 15. h3 {[%clk 0:02:41]}  Kg7 {[%clk 0:01:48]} 16. Rae1 {[%clk 0:02:37]}  b5 {[%clk 0:01:42]} 17. Be2 {[%clk 0:02:37]}  Re8 {[%clk 0:01:42]} 18. Bf3 {[%clk 0:02:35]}  Qd7 {[%clk 0:01:22]} 19. Rc1 {[%clk 0:02:17]}  Rbc8 {[%clk 0:01:03]} 20. d5 {[%clk 0:02:02]}  cxd5 {[%clk 0:00:42]} 21. Qxb5 {[%clk 0:02:02]}  Qxb5 {[%clk 0:00:20]} 22. Nxb5 {[%clk 0:02:02]}  Be5 {[%clk 0:00:20]} 23. b3 {[%clk 0:01:48]}  a6 {[%clk 0:00:16]} 24. Na7 {[%clk 0:01:30]}  Rxc1 {[%clk 0:00:14]} 25. Rxc1 {[%clk 0:01:31]}  Ne4 {[%clk 0:00:11]} 26. Bxe4 {[%clk 0:01:16]}  dxe4 {[%clk 0:00:11]} 27. Nc6 {[%clk 0:01:13]}  Bf6 {[%clk 0:00:07]} 28. Nb4 {[%clk 0:01:11]}  a5 {[%clk 0:00:06]} 29. Nd5 {[%clk 0:01:10]}  Be5 {[%clk 0:00:06]} 30. g3 {[%clk 0:01:09]}  h5 {[%clk 0:00:06]} 31. h4 {[%clk 0:01:08]}  Rd8 {[%clk 0:00:05]} 32. Rc5 {[%clk 0:01:08]}  Ra8 {[%clk 0:00:02]} 33. Nb6 {[%clk 0:01:05]}  Re8 {[%clk 0:00:02]} 34. Rxa5 {[%clk 0:00:54]}  Bc7 {[%clk 0:00:02]} 35. Ra8 {[%clk 0:00:54]}  Re6 {[%clk 0:00:01]} 36. Nc4 {[%clk 0:00:51]}  Rc6 {[%clk 0:00:01]} 37. a4 {[%clk 0:00:49]}  f6 {[%clk 0:00:01]} 38. a5 {[%clk 0:00:48]}  g5 {[%clk 0:00:02]} 39. a6 {[%clk 0:00:47]}  gxh4 {[%clk 0:00:01]} 40. gxh4 {[%clk 0:00:48]}  f4 {[%clk 0:00:02]} 41. a7 {[%clk 0:00:44]}  Ra6 {[%clk 0:00:01]} 42. b4 {[%clk 0:00:45]}  fxe3 {[%clk 0:00:01]} 43. fxe3 {[%clk 0:00:44]}  Ra2 {[%clk 0:00:02]} 44. b5 {[%clk 0:00:44]}  f5 {[%clk 0:00:01]} 45. b6 {[%clk 0:00:43]}  Bh2+ {[%clk 0:00:01]} 46. Kf1 {[%clk 0:00:42]} 1-0


[Site "https://www.chess.com"]